bitfinex/quotes_ETHUSD_20241223
["timestamp","ask_amount","ask_price","bid_price","bid_amount"]
[1734913269772,0.04407592,3271.9,3271.2,0.60458115]
[1734913270112,0.8326,3272.9,3271.8,8.93]
[1734913270277,0.8326,3272.9,3271.8,11.98634]
[1734913270473,0.8326,3272.9,3271.8,8.93]
[1734913270678,3.05577,3272.5,3271.8,8.93]
[1734913270879,0.305577,3272.5,3271.8,8.93]
[1734913271110,3.05614,3272.1,3271.8,8.93]
[1734913271502,0.04375226,3272.0,3271.8,8.93]
[1734913272105,3.05594,3272.4,3271.8,8.93]
[1734913272313,0.04377857,3271.9,3271.8,8.93]
[1734913272500,3.83039,3272.9,3271.8,8.93]
[1734913272714,3.05553,3272.8,3271.8,8.93]
[1734913272880,0.04389552,3272.8,3271.8,8.93]
[1734913273215,3.05569,3272.6,3271.8,8.93]
[1734913273622,0.04377735,3272.5,3271.8,8.93]
[1734913274504,3.05601,3272.3,3271.5,3.97875146]
[1734913274687,0.04371522,3272.2,3271.3,3.0]
[1734913274894,0.04371522,3272.2,3271.2,6.65378129]
[1734913275204,3.05601,3272.3,3271.2,6.65378129]
[1734913275610,0.04383865,3272.2,3271.2,3.59681129]
[1734913275812,3.05575,3272.6,3271.3,3.05688]
[1734913275986,0.775,3272.9,3271.9,3.05628]
[1734913276191,0.383187,3273.8,3272.1,8.93]
[1734913276192,0.04384815,3272.5,3272.1,8.93]
[1734913276438,3.05512,3273.2,3272.2,8.93]
[1734913276596,6.8675,3273.7,3272.2,8.93]
[1734913276597,0.8128,3273.7,3272.2,8.93]
[1734913276798,3.09889804,3273.1,3272.1,8.93]
[1734913276998,3.05522,3273.1,3272.1,8.93]
[1734913277346,3.05502,3273.3,3272.1,11.98613]
[1734913277638,3.05502,3273.3,3272.2,24.0]
[1734913278130,3.05511,3273.2,3272.2,24.0]
[1734913278332,3.05498,3273.4,3272.2,24.0]
[1734913278509,3.80952,3273.3,3272.2,24.0]
[1734913278694,3.80952,3273.3,3272.1,8.93]
[1734913279030,0.7545,3273.1,3271.6,11.93]
[1734913279332,3.05626,3272.0,3271.4,0.61759405]
[1734913279533,3.05605,3272.2,3271.4,0.61759405]
[1734913279826,0.7545,3272.3,3271.1,8.93]
[1734913280031,3.10053742,3272.1,3271.1,8.93]
[1734913280230,3.05615,3272.1,3271.1,8.93]
[1734913280410,0.04426242,3272.0,3271.1,8.93]
[1734913281017,0.04426242,3272.0,3271.3,0.55]
[1734913281243,0.7593,3272.8,3271.8,8.93]
[1734913281850,0.04204179,3272.7,3271.8,8.93]
[1734913282018,0.7593,3272.8,3271.8,8.93]
[1734913282225,3.82221,3273.1,3271.9,3.44490994]
[1734913282532,3.0553,3273.0,3271.9,3.44490994]
[1734913282937,0.04219839,3272.9,3271.8,8.93]
[1734913283139,3.05582,3272.5,3271.8,8.93]
[1734913283556,0.04269638,3272.4,3271.8,8.93]
[1734913283766,3.05582,3272.5,3271.8,8.93]
[1734913284166,0.04269638,3272.4,3271.8,8.93]
[1734913285259,3.09860638,3272.4,3271.8,8.93]
[1734913285556,0.04269638,3272.4,3271.8,8.93]
[1734913285747,3.82228,3273.1,3271.8,8.93]
[1734913285943,3.05539,3272.9,3271.8,8.93]
[1734913286348,3.05567,3272.6,3271.8,8.93]
[1734913286655,0.04257593,3272.5,3271.9,3.44490994]
[1734913286836,0.04257593,3272.5,3272.0,3.0]
[1734913287035,0.767,3273.1,3272.0,3.0]
[1734913287861,0.83,3273.5,3272.1,8.93]
[1734913288079,0.04271216,3273.0,3272.1,8.93]
[1734913288288,3.05531,3273.0,3272.1,8.93]
[1734913288784,0.04254656,3272.9,3272.2,8.93]
[1734913289086,3.05507,3273.3,3272.2,8.93]
[1734913289443,3.0980861,3273.2,3272.2,8.93]
[1734913289650,3.0980861,3273.2,3272.3,0.59980544]
[1734913292341,0.0429561,3273.2,3272.3,0.59980544]
[1734913292554,3.05555,3272.8,3272.1,8.93]
[1734913292867,0.0428526,3272.7,3272.1,8.93]
[1734913293293,3.0557,3272.6,3272.1,8.93]
[1734913293433,0.7787,3272.7,3272.1,8.93]
[1734913293830,3.05585,3272.5,3272.1,8.93]
[1734913294029,0.8226,3273.3,3272.1,8.93]
[1734913294230,0.04279048,3272.4,3272.1,8.93]
[1734913294482,3.05522,3273.1,3272.1,8.93]
[1734913294845,0.04277943,3273.0,3272.1,8.93]
[1734913295249,0.04277943,3273.0,3272.1,11.9861]
[1734913295467,5.13265315,3273.3,3272.1,11.9861]
[1734913295761,5.13265315,3273.3,3272.2,8.93]
[1734913295962,3.09802906,3273.2,3272.2,8.93]
[1734913296191,3.05539,3272.9,3272.2,8.93]
[1734913296369,3.05568,3272.6,3272.2,9.98800776]
[1734913296663,0.04276415,3272.5,3272.2,9.98800776]
[1734913297240,0.04276415,3272.5,3271.8,0.61484247]
[1734913297449,0.04276415,3272.5,3272.1,3.05612]
[1734913297758,1.25502315,3273.2,3272.0,3.0]
[1734913297941,0.04295428,3273.1,3272.0,3.0]
[1734913298345,0.04295428,3273.1,3272.3,3.05593]
[1734913298955,0.04293823,3273.0,3272.3,3.05593]
[1734913299166,3.05504,3273.3,3272.1,3.05612]
[1734913299335,0.04297963,3273.2,3272.1,3.05612]
[1734913299531,0.04297963,3273.2,3272.4,1.05884314]
[1734913300134,0.04297963,3273.2,3272.4,1.68408402]
[1734913300371,3.0555,3272.8,3272.4,1.05884314]
[1734913300574,0.30555,3272.8,3272.4,1.05884314]
[1734913300772,0.30555,3272.8,3272.2,1.26505466]
[1734913300773,3.05576,3272.5,3272.2,7.8e-06]
[1734913300981,3.0,3272.1,3271.9,1.00190913]
[1734913301199,6.88753818,3272.0,3271.9,1.00190913]
[1734913301537,6.88753818,3272.0,3271.8,3.16263666]
[1734913301538,7.43962,3271.9,3271.8,5.79e-06]
[1734913301771,3.0566,3271.6,3271.5,0.73846979]
[1734913302077,0.8333,3271.3,3271.2,4.42769133]
[1734913302278,0.82967158,3271.6,3270.4,3.44490994]
[1734913302492,0.04195396,3271.3,3270.8,3.44490994]
[1734913302696,0.04200288,3271.5,3270.9,0.7385]
[1734913302866,0.7873,3271.9,3270.9,0.7385]
[1734913303073,0.04138786,3271.4,3270.9,0.7385]
[1734913303259,2.05629194,3271.9,3270.9,0.7385]
[1734913303994,0.04149774,3271.8,3270.9,3.7385]
[1734913304193,0.04149774,3271.8,3271.3,3.05688]
[1734913304561,0.04149774,3271.8,3271.4,3.0]
[1734913304761,0.04149774,3271.8,3271.5,0.7385]
[1734913305162,0.04149774,3271.8,3271.6,3.05655]
[1734913305561,0.04149774,3271.8,3271.6,6.50145994]
[1734913305791,1.26899194,3272.5,3271.6,6.50145994]
[1734913305995,0.04145671,3272.4,3271.7,8.93]
[1734913306699,3.05595,3272.3,3271.7,8.93]
[1734913306995,0.8179,3272.3,3271.7,8.93]
[1734913307166,0.04248548,3272.2,3271.7,8.93]
[1734913307579,3.05614,3272.1,3271.7,8.93]
[1734913307911,0.04233817,3272.0,3270.8,7.18340994]
[1734913308083,0.04233817,3272.0,3271.1,3.0]
[1734913309204,1.26899194,3272.2,3271.1,3.0]
[1734913309409,0.04077527,3272.1,3271.3,3.0]
[1734913310277,5.14284194,3272.3,3271.3,3.0]
[1734913310512,0.04074354,3272.0,3271.3,3.0]
[1734913310706,0.74335205,3272.2,3271.3,3.0]
[1734913310913,0.04075224,3271.9,3271.3,3.0]
[1734913311099,1.26899194,3272.2,3271.3,6.05683]
[1734913311296,0.04074254,3271.8,3271.3,6.05683]
[1734913311507,1.26899194,3272.2,3271.4,0.7385]
[1734913311686,0.0406983,3271.7,3271.4,0.7385]
[1734913311880,0.8179,3272.3,3271.4,0.7385]
[1734913312275,0.04080059,3272.2,3271.4,0.7385]
[1734913313285,1.26899194,3272.4,3271.4,0.7385]
[1734913313486,0.04100466,3272.1,3271.4,9.6685]
[1734913313686,1.26899194,3272.4,3271.6,12.37490994]
[1734913313687,0.04104608,3272.3,3271.6,12.37490994]
[1734913313891,0.04098395,3272.0,3271.8,3.05639]
[1734913314100,1.26899194,3272.5,3272.0,3.05617]
[1734913314299,1.26899194,3272.5,3272.1,4.18340994]
[1734913314499,0.04106679,3272.4,3272.1,4.18340994]
[1734913315075,1.26899194,3272.8,3272.1,4.18340994]
[1734913315276,0.04116413,3272.3,3272.1,0.7385]
[1734913315623,0.04126862,3272.2,3271.7,7.18340994]
[1734913315797,3.05558,3272.7,3271.7,7.18340994]
[1734913315984,0.04133968,3272.6,3271.7,7.18340994]
[1734913316380,1.26899194,3272.9,3271.7,7.18340994]
[1734913316582,1.26899194,3272.7,3271.9,3.05632]
[1734913316776,0.04153968,3272.6,3271.9,3.05632]
[1734913317587,1.26899194,3272.9,3271.9,3.05632]
[1734913317795,0.04152131,3272.8,3272.1,0.6016836]
[1734913318000,0.04152131,3272.8,3272.1,12.97659354]
[1734913318202,0.04152131,3272.8,3272.5,3.0]
[1734913318399,0.04152131,3272.8,3272.4,3.0]
[1734913318984,1.26899194,3273.0,3272.4,3.0]
[1734913319185,0.04154848,3272.9,3272.4,3.0]
[1734913319817,0.04154848,3272.9,3272.4,6.05584]
[1734913320503,0.04154848,3272.9,3272.4,3.0]
[1734913320717,3.05536,3273.0,3272.3,8.93]
[1734913320923,0.04184568,3272.8,3272.3,8.93]
[1734913321088,0.81076638,3272.9,3272.3,8.93]
[1734913321288,0.04206018,3272.7,3272.3,8.93]
[1734913321489,0.04208088,3272.8,3272.4,6.05585]
[1734913321690,0.04203948,3272.6,3272.4,3.0]
[1734913321906,1.26899194,3273.2,3272.4,3.0]
[1734913322342,0.04209005,3273.1,3272.4,3.0]
[1734913322561,0.04209005,3273.1,3272.5,0.7385]
[1734913323335,0.04209005,3273.1,3272.4,11.93]
[1734913323638,0.7833,3273.0,3272.4,11.93]
[1734913323835,0.04183932,3272.9,3272.4,11.93]
[1734913324448,3.88356,3272.5,3272.4,8.93]
[1734913324730,3.92541316,3272.5,3271.4,1.27956387]
[1734913324893,0.86965316,3272.5,3271.4,1.27956387]
[1734913325098,0.86965316,3272.5,3271.7,3.44490994]
[1734913325306,1.26899194,3272.6,3271.8,3.79491]
[1734913325710,0.04188305,3272.5,3271.8,3.79491]
[1734913326120,0.04188305,3272.5,3271.9,3.0]
[1734913326436,3.82695,3272.3,3271.3,3.44490994]
[1734913326634,1.15788331,3272.3,3271.3,3.44490994]
[1734913326836,0.04182092,3272.2,3271.3,4.72447381]
[1734913327132,0.771,3272.3,3271.3,4.72447381]
[1734913327350,0.771,3272.3,3271.5,3.0567]
[1734913327498,0.04182092,3272.2,3271.5,3.0567]
[1734913327698,0.771,3272.3,3271.5,3.0567]
[1734913327898,0.771,3272.3,3271.3,4.04961558]
[1734913328192,0.04145045,3272.2,3271.4,3.0]
[1734913328493,3.05623,3272.0,3271.4,3.0]
[1734913328698,0.04145045,3272.2,3270.9,3.21653328]
[1734913328699,0.305623,3271.9,3271.1,3.0]
[1734913328933,0.04131772,3271.9,3271.1,0.62189381]
[1734913329150,3.05608,3272.2,3271.1,0.62189381]
[1734913329309,0.04081479,3271.8,3271.1,0.62189381]
[1734913329513,3.05608,3272.2,3271.1,0.62189381]
[1734913329693,0.382708,3272.1,3271.0,6.05716]
[1734913329899,0.42218916,3272.1,3271.0,6.05716]
[1734913330099,0.03948116,3272.1,3271.3,3.44490994]
[1734913330318,0.03948116,3272.1,3271.5,3.05668]
[1734913330505,0.03948116,3272.1,3271.4,3.0]
[1734913330726,2.03999194,3272.3,3271.4,3.0]
[1734913331253,3.05634,3271.9,3271.1,8.93]
[1734913331534,3.05634,3271.9,3271.2,3.0]
[1734913331535,1.11130597,3271.8,3271.2,3.0]
[1734913332096,0.80567197,3271.8,3271.2,3.0]
[1734913332331,0.80567197,3271.8,3271.3,3.44490994]
[1734913332723,0.7664,3271.8,3271.3,6.50176994]
[1734913333250,0.03910417,3271.7,3271.3,6.50176994]
[1734913333453,0.7664,3271.8,3271.3,6.50176994]
[1734913333992,0.03919829,3271.7,3270.9,9.53391491]
[1734913334113,0.7664,3271.6,3270.6,8.93]
[1734913334309,0.7664,3271.1,3270.6,10.20956387]
[1734913334553,0.7664,3271.1,3270.6,1.27956387]
[1734913334852,3.05728,3270.9,3270.6,1.27956387]
[1734913335455,0.03880036,3270.8,3270.3,0.31782566]
[1734913335649,0.7664,3271.1,3270.3,0.31782566]
[1734913335952,3.05731,3270.9,3270.3,0.31782566]
[1734913336277,3.05759,3270.6,3269.9,3.44490994]
[1734913336656,3.09603901,3270.5,3269.8,35.0]
[1734913336951,3.05763,3270.5,3269.8,35.0]
[1734913337148,3.05763,3270.5,3269.7,0.62129552]
[1734913337546,3.05791,3270.2,3269.6,3.0]
[1734913337726,3.05791,3270.2,3269.0,5.61834447]
[1734913337727,3.05827,3269.9,3269.4,8.93]
[1734913338061,0.03830679,3269.8,3269.4,8.93]
[1734913338444,3.05827,3269.9,3269.4,8.93]
[1734913338628,3.05842,3269.7,3268.9,1.27956387]
[1734913338973,0.03813578,3269.6,3268.9,1.27956387]
[1734913339152,0.03813578,3269.6,3268.8,35.0]
[1734913339355,0.03813578,3269.6,3268.6,8.93]
[1734913339356,3.05895,3269.1,3268.6,8.93]
[1734913339538,0.7748,3269.5,3268.6,8.93]
[1734913339739,0.03802204,3269.0,3268.6,8.93]
[1734913339940,0.7748,3269.5,3268.7,3.44490994]
[1734913340175,0.7748,3269.5,3268.7,3.60431866]
[1734913340383,0.7828,3270.4,3269.1,3.44490994]
[1734913340684,3.05802,3270.1,3269.2,3.0]
[1734913340831,1.26899194,3270.0,3269.2,3.0]
[1734913341034,0.03580488,3269.9,3269.2,3.0]
[1734913341667,0.03580488,3269.9,3269.3,35.0]
[1734913342256,0.7528,3270.2,3269.3,35.0]
[1734913342649,0.7528,3269.6,3269.2,3.0]
[1734913342973,0.03591426,3269.5,3269.2,3.0]
[1734913343338,0.03591426,3269.5,3269.1,8.93]
[1734913343645,0.7528,3269.6,3269.1,8.93]
[1734913343851,1.133916,3269.6,3269.1,8.93]
[1734913344162,0.7528,3269.6,3269.1,8.93]
[1734913344361,3.05932,3268.7,3267.9,8.93]
[1734913344561,3.05932,3268.7,3267.9,10.154022]
[1734913344773,0.86816494,3268.6,3267.9,10.154022]
[1734913344973,0.8326,3268.6,3267.9,8.93]
[1734913345272,3.89201,3268.6,3267.9,8.93]
[1734913345475,0.8326,3268.6,3267.9,8.93]
[1734913345974,0.03486806,3268.5,3268.2,3.7385]
[1734913346185,0.03486806,3268.5,3268.4,3.44490994]
[1734913346483,0.7807,3269.8,3268.7,11.93]
[1734913346649,3.05839,3269.7,3268.7,11.93]
[1734913346854,0.03246,3269.6,3268.9,35.0]
[1734913347043,3.05839,3269.7,3268.9,35.0]
[1734913347376,0.03239994,3269.6,3268.9,35.0]
[1734913347777,0.7807,3269.8,3269.0,3.0]
[1734913349676,0.7807,3269.8,3269.0,11.93]
[1734913350180,3.83908,3269.8,3269.0,11.93]
[1734913350739,0.03284167,3269.7,3269.0,11.93]
[1734913351149,0.7807,3269.8,3269.0,11.93]
[1734913351362,0.7807,3269.8,3269.0,14.98896]
[1734913351749,0.305763,3270.5,3269.0,14.98896]
[1734913351750,0.8164,3270.4,3269.2,6.44490994]
[1734913352072,0.8164,3270.4,3269.3,0.7385]
[1734913352247,0.8164,3270.4,3269.4,3.0]
[1734913352650,0.8164,3270.4,3269.6,6.44490994]
[1734913353193,0.8164,3270.4,3269.4,3.0]
[1734913353194,3.05788,3270.3,3269.4,3.0]
[1734913353600,0.7672,3270.1,3268.9,3.7385]
[1734913353881,0.7672,3270.1,3269.2,3.0]
[1734913354398,0.03297914,3270.0,3269.4,3.0]
[1734913354576,0.7672,3270.6,3269.5,0.7385]
[1734913354898,0.03309711,3270.5,3269.9,11.93]
[1734913355103,0.03309711,3270.5,3270.4,3.44490994]
[1734913355307,1.26899194,3271.2,3270.6,3.05752]
[1734913355489,1.26899194,3271.2,3270.9,0.7385]
[1734913355794,0.0320834,3271.1,3270.9,3.7385]
[1734913355955,0.0320834,3271.1,3270.9,6.79574]
[1734913356323,1.26899194,3271.2,3270.9,6.79574]
[1734913356797,0.7746,3271.9,3271.1,3.0]
[1734913356963,1.26899194,3272.2,3271.2,8.93]
[1734913357171,1.26899194,3272.2,3271.7,3.0]
[1734913357477,1.26899194,3272.2,3271.7,0.7385]
[1734913357790,1.26899194,3272.2,3271.4,3.0]
[1734913357791,0.03324252,3272.1,3271.4,3.0]
[1734913358170,3.05614,3272.1,3271.4,3.0]
[1734913358409,0.7827,3272.0,3271.4,3.0]
[1734913358903,0.03354147,3271.9,3271.4,3.0]
[1734913359276,0.7827,3272.0,3271.4,3.0]
[1734913359476,0.03383011,3271.9,3271.4,3.0]
[1734913360105,3.84838,3272.3,3271.4,3.0]
[1734913360281,1.177238,3272.3,3271.4,3.0]
[1734913360481,0.03395114,3272.2,3271.4,3.0]
[1734913360696,0.7924,3272.3,3271.4,3.0]
[1734913361194,0.03390428,3272.2,3271.4,3.0]
[1734913361606,0.7924,3272.3,3271.4,11.93]
[1734913361824,0.7924,3272.3,3271.5,3.05668]
[1734913362123,0.7813,3272.6,3271.8,3.0]
[1734913362328,0.7813,3273.0,3271.9,0.7385]
[1734913362638,0.383651,3272.9,3271.9,0.7385]
[1734913362828,0.41767058,3272.9,3271.9,0.7385]
[1734913363123,3.439111,3272.9,3271.9,0.7385]
[1734913363534,0.383651,3272.9,3271.9,6.79482]
[1734913363828,0.7538,3273.4,3272.2,6.44490994]
[1734913363971,0.03428963,3272.8,3272.3,0.7385]
[1734913364173,3.80846,3273.7,3272.6,8.93]
[1734913364731,0.03445521,3273.6,3272.8,3.0]
[1734913366935,3.08921521,3273.6,3272.8,3.0]
[1734913368491,0.03445521,3273.6,3272.8,3.0]
[1734913369054,0.7538,3273.7,3272.8,3.0]
[1734913369323,3.0887368,3273.6,3272.8,3.0]
[1734913369816,0.0339768,3273.6,3272.8,3.0]
[1734913370034,0.0339768,3273.6,3273.4,3.44490994]
[1734913370242,0.0339768,3273.6,3273.5,6.79333]
[1734913370399,0.8199,3274.8,3273.8,6.05453]
[1734913370607,0.8199,3274.8,3274.0,12.37490994]
[1734913370904,1.26899194,3274.9,3274.2,9.6685]
[1734913371097,1.26899194,3275.1,3274.5,8.93]
[1734913371295,0.03047507,3274.8,3274.6,8.93]
[1734913371516,1.26899194,3275.1,3274.6,8.93]
[1734913371882,0.03081475,3275.0,3274.9,11.93]
[1734913372082,0.03081475,3275.0,3274.9,12.6685]
[1734913372292,0.168957,3275.6,3274.9,12.6685]
[1734913372732,0.168957,3275.6,3275.3,3.0]
[1734913372892,0.03074841,3275.5,3275.3,11.93]
[1734913373096,0.168957,3275.6,3275.3,11.93]
[1734913376324,0.168957,3275.6,3275.3,8.93]
[1734913376702,0.03415598,3275.5,3275.2,3.44490994]
[1734913376915,0.168957,3275.6,3275.2,3.44490994]
[1734913379105,3.221867,3275.6,3275.2,3.44490994]
[1734913379309,0.168957,3275.6,3275.2,3.44490994]
[1734913379521,0.0340385,3275.5,3275.2,3.44490994]
[1734913380123,0.0340385,3275.5,3274.8,3.44490994]
[1734913380318,3.05347,3275.0,3274.8,3.44490994]
[1734913380831,0.033859,3274.9,3274.8,3.44490994]
[1734913381440,3.05322,3275.3,3274.8,3.44490994]
[1734913381633,0.03367203,3274.9,3274.8,6.44490994]
[1734913381845,3.05299,3275.5,3274.8,6.44490994]
[1734913382213,0.168957,3275.6,3274.8,6.44490994]
[1734913382214,3.05316,3275.3,3274.8,6.44490994]
[1734913382411,0.30869354,3275.3,3274.8,3.44490994]
[1734913382604,3.05369,3274.8,3274.4,3.44490994]
[1734913382820,0.0337145,3274.7,3274.4,3.44490994]
[1734913383048,3.05383,3274.6,3274.4,3.44490994]
[1734913383259,0.03360498,3274.5,3273.6,3.44490994]
[1734913383436,3.05442,3274.0,3273.4,8.93]
[1734913383752,0.03352636,3273.9,3273.4,8.93]
[1734913383937,3.08798636,3273.9,3273.2,12.37490994]
[1734913384248,0.03352636,3273.9,3273.2,3.44490994]
[1734913384446,3.82318,3274.1,3272.8,4.18340994]
[1734913384447,3.05475,3273.6,3272.8,4.18340994]
[1734913384649,0.03309018,3273.5,3272.8,4.18340994]
[1734913385355,3.82323,3274.1,3273.2,3.44490994]
[1734913385649,3.82323,3274.1,3273.3,3.0]
[1734913385650,0.03318919,3274.0,3273.3,3.0]
[1734913385815,0.41881611,3274.0,3273.3,3.0]
[1734913386012,3.05484,3273.5,3272.8,4.18340994]
[1734913386250,0.03299505,3273.4,3272.8,4.18340994]
[1734913387413,0.7861,3273.3,3272.3,0.15492367]
[1734913387617,3.05568,3272.6,3271.9,9.6685]
[1734913387814,0.7861,3273.3,3271.9,0.7385]
[1734913388044,0.7861,3273.3,3271.9,9.6685]
[1734913388358,0.03300246,3273.2,3272.5,12.72424]
[1734913388535,0.03300246,3273.2,3272.6,8.93]
[1734913388740,0.7701,3274.2,3272.7,3.0]
[1734913388741,3.05456,3273.8,3272.7,3.0]
[1734913388917,0.7701,3274.2,3272.7,3.0]
[1734913389121,0.03239447,3273.7,3272.9,3.0]
[1734913389340,3.0543,3274.1,3272.9,3.0]
[1734913389749,0.03244584,3274.0,3273.0,8.93]
[1734913390065,0.03244584,3274.0,3273.2,0.7385]
[1734913390286,0.7701,3274.2,3273.2,0.7385]
[1734913391366,0.03139585,3274.1,3273.2,0.7385]
[1734913391830,0.7701,3274.2,3273.2,0.7385]
[1734913392029,0.03139585,3274.1,3273.2,0.7385]
[1734913394874,0.03139585,3274.1,3273.4,11.93]
[1734913395045,3.05446,3273.9,3273.5,3.0]
[1734913395245,0.03133379,3273.8,3273.4,8.93]
[1734913396074,3.82436,3274.2,3273.4,8.93]
[1734913396273,0.41383185,3274.1,3273.4,8.93]
[1734913396481,3.46814185,3274.1,3273.4,8.93]
[1734913396645,3.05438,3274.0,3273.4,8.93]
[1734913396842,0.03138011,3273.9,3273.4,8.93]
[1734913397038,0.7701,3274.2,3273.4,8.93]
[1734913397376,0.03110539,3274.1,3273.4,8.93]
[1734913397783,0.60613102,3275.0,3273.7,8.93]
[1734913398089,0.7559,3274.8,3273.9,3.0]
[1734913398382,0.02926619,3274.7,3274.3,3.0]
[1734913398769,0.7559,3275.2,3274.3,3.0]
[1734913399373,0.02965798,3275.1,3274.3,3.0]
[1734913400083,0.7506,3275.4,3274.4,8.93]
[1734913400269,0.0297072,3275.3,3274.5,3.0]
[1734913400858,0.0297072,3275.3,3274.6,0.7385]
[1734913401454,0.0297072,3275.3,3274.6,3.79228]
[1734913401655,0.168957,3275.6,3274.9,3.0]
[1734913401853,0.168957,3275.6,3275.1,3.7385]
[1734913402062,0.168957,3275.6,3275.1,12.6685]
[1734913402689,0.03017828,3275.5,3275.1,12.6685]
[1734913403080,0.168957,3275.6,3275.1,15.72179]
[1734913403387,0.168957,3275.6,3275.1,13.27905116]
[1734913403589,0.168957,3275.6,3275.5,4.34146]
[1734913403887,0.8023,3277.0,3275.6,11.93]
[1734913404086,3.0518,3276.8,3275.6,15.37490994]
[1734913404394,0.03147431,3276.7,3276.1,3.44490994]
[1734913404589,0.03147431,3276.7,3276.2,11.93]
[1734913404750,3.84981,3277.3,3276.3,0.7385]
[1734913404955,0.7985,3277.3,3276.3,0.7385]
[1734913405156,3.08265425,3277.2,3276.3,0.7385]
[1734913405373,1.26398077,3276.8,3276.3,0.7385]
[1734913405787,1.26398077,3276.8,3276.6,3.0]
[1734913405788,0.03173715,3276.7,3276.6,3.0]
[1734913406373,3.05117,3277.5,3276.6,3.0]
[1734913406574,0.03066504,3276.7,3276.6,3.0]
[1734913406826,3.0512,3277.4,3276.6,3.0]
[1734913407173,0.03153473,3277.3,3276.6,3.0]
[1734913407609,3.05098,3277.7,3276.6,3.0]
[1734913407817,3.0512,3277.4,3276.6,3.0]
[1734913408007,3.43599,3277.4,3276.6,3.0]
[1734913408209,0.0317235,3277.3,3276.6,3.0]
[1734913408570,0.7717,3278.3,3276.8,3.0]
[1734913408974,0.03191419,3278.2,3277.4,0.7385]
[1734913409203,0.03191419,3278.2,3277.8,3.44490994]
[1734913409403,0.7717,3278.7,3277.9,3.0]
[1734913409754,0.168957,3278.9,3278.7,3.0]
[1734913410039,3.96597594,3278.9,3278.8,9.6685]
[1734913410329,3.96597594,3278.9,3278.8,12.6685]
[1734913411117,3.96597594,3278.9,3278.8,29.419682]
[1734913411286,0.168957,3278.9,3278.8,25.493879]
[1734913411830,0.168957,3278.9,3278.8,25.101002]
[1734913412011,0.168957,3278.9,3278.8,13.26835091]
[1734913412422,0.168957,3278.9,3278.8,16.16304991]
[1734913412723,0.168957,3278.9,3278.8,13.26835091]
[1734913413924,0.168957,3278.9,3278.8,17.83119391]
[1734913414125,0.168957,3278.9,3278.8,17.61519191]
[1734913414333,0.168957,3278.9,3278.8,13.81835091]
[1734913414633,0.168957,3278.9,3278.8,27.44907191]
[1734913416548,0.168957,3278.9,3278.8,26.63964391]
[1734913417565,3.04839,3280.5,3279.3,8.93]
[1734913417866,0.7828,3280.7,3279.8,3.0]
[1734913418001,0.02872172,3280.4,3279.8,3.0]
[1734913418196,3.83095,3280.7,3279.8,3.0]
[1734913418397,0.02884188,3280.3,3279.8,11.93]
[1734913418648,3.83095,3280.7,3279.8,11.93]
[1734913418941,3.07716222,3280.6,3279.8,11.93]
[1734913419139,0.02892222,3280.6,3279.8,11.93]
[1734913419443,0.02892222,3280.6,3280.2,3.44490994]
[1734913419619,3.04815,3280.7,3280.2,3.44490994]
[1734913419945,0.028995,3280.6,3280.2,3.44490994]
[1734913420314,3.04852,3280.3,3279.8,3.44490994]
[1734913420522,0.02802957,3280.2,3279.9,3.0]
[1734913420832,3.04852,3280.3,3279.9,3.0]
[1734913421035,0.02800897,3280.1,3280.0,8.93]
[1734913421235,3.04805,3280.8,3280.2,3.44490994]
[1734913421629,0.0281238,3280.7,3280.2,3.44490994]
[1734913422812,0.0281238,3280.7,3280.6,6.44490994]
[1734913423311,3.82481,3281.5,3280.7,3.0]
[1734913423509,0.02818804,3281.4,3281.0,3.44490994]
[1734913423754,0.7774,3281.5,3281.0,3.44490994]
[1734913424352,3.223317,3282.2,3281.0,0.7385]
[1734913424353,0.02818804,3281.4,3281.0,0.7385]
[1734913424646,0.02818804,3281.4,3281.3,3.44490994]
[1734913424848,3.0472,3281.7,3281.3,3.44490994]
[1734913425326,0.02792593,3281.6,3281.3,3.44490994]
[1734913425922,3.04698,3282.0,3281.3,3.44490994]
[1734913426128,3.04723,3281.7,3281.3,3.44490994]
[1734913426329,0.02792593,3281.6,3281.3,3.44490994]
[1734913426551,0.8093,3281.6,3280.9,3.44490994]
[1734913426853,0.8093,3281.6,3280.7,8.93]
[1734913426854,3.04738,3281.5,3280.7,8.93]
[1734913427013,3.07553738,3281.5,3280.7,8.93]
[1734913427220,3.07553738,3281.5,3280.9,3.44490994]
[1734913427427,0.02815738,3281.5,3280.9,3.44490994]
[1734913428372,0.02815738,3281.5,3281.0,3.0]
[1734913428773,0.8093,3281.7,3281.3,3.44490994]
[1734913429074,0.0279727,3281.4,3281.3,3.44490994]
[1734913429274,0.786,3282.1,3281.3,3.44490994]
[1734913429758,0.02826914,3282.0,3281.3,3.44490994]
[1734913430116,3.07520914,3282.0,3281.3,3.44490994]
[1734913430324,0.02826914,3282.0,3281.3,3.44490994]
[1734913430530,3.04702,3281.9,3281.3,3.44490994]
[1734913430774,0.02817812,3281.8,3281.3,3.44490994]
[1734913431269,0.02817812,3281.8,3281.4,3.0]
[1734913431566,3.04683,3282.1,3281.4,3.0]
[1734913431773,0.02763574,3281.7,3281.5,0.7385]
[1734913431968,0.176567,3282.2,3281.5,0.7385]
[1734913432132,0.176567,3282.2,3281.7,3.44490994]
[1734913432332,0.02771809,3282.1,3281.7,3.44490994]
[1734913432569,0.176567,3282.2,3281.8,3.0]
[1734913432750,0.176567,3282.2,3282.1,7.18340994]
[1734913433660,0.176567,3282.2,3282.1,6.44490994]
[1734913433858,0.176567,3282.2,3281.5,9.43437405]
[1734913433859,3.04702,3281.9,3281.5,8.93]
[1734913434171,3.04713,3281.8,3281.5,8.93]